[Event "Titled Tuesday Blitz June 27 Early 2023"]
[White "Morefield, Jason"]
[Black "Nguyen, Ngoc Truong Son"]
[WhiteFideId "30920825"]
[BlackFideId "12401110"]
[WhiteElo "2750"]
[BlackElo "2967"]
[Result "0-1"]
[Round "4"]
[TimeControl "180+2"]
[Date "2023.06.27"]
[WhiteClock "0:00:02"]
[BlackClock "0:00:08"]
[Board "15"]

1. e4 {[%clk 0:03:00]}  e5 {[%clk 0:02:58]} 2. Nf3 {[%clk 0:03:00]}  Nc6 {[%clk 0:02:58]} 3. Bb5 {[%clk 0:03:00]}  Nf6 {[%clk 0:02:57]} 4. d3 {[%clk 0:03:00]}  Bc5 {[%clk 0:02:56]} 5. Bxc6 {[%clk 0:02:58]}  dxc6 {[%clk 0:02:56]} 6. O-O {[%clk 0:02:55]}  Qe7 {[%clk 0:02:38]} 7. Bg5 {[%clk 0:02:46]}  h6 {[%clk 0:02:34]} 8. Bh4 {[%clk 0:02:46]}  Bg4 {[%clk 0:02:28]} 9. Nbd2 {[%clk 0:02:36]}  g5 {[%clk 0:02:19]} 10. Bg3 {[%clk 0:02:36]}  Nd7 {[%clk 0:02:16]} 11. Nc4 {[%clk 0:02:21]}  f6 {[%clk 0:02:09]} 12. Ne3 {[%clk 0:02:04]}  Bxe3 {[%clk 0:02:05]} 13. fxe3 {[%clk 0:02:05]}  h5 {[%clk 0:02:05]} 14. h3 {[%clk 0:01:51]}  Be6 {[%clk 0:02:03]} 15. d4 {[%clk 0:01:23]}  h4 {[%clk 0:01:58]} 16. Bh2 {[%clk 0:01:23]}  O-O-O {[%clk 0:01:52]} 17. Qe1 {[%clk 0:01:13]}  g4 {[%clk 0:01:47]} 18. hxg4 {[%clk 0:01:10]}  Bxg4 {[%clk 0:01:48]} 19. Nxh4 {[%clk 0:01:05]}  Qh7 {[%clk 0:01:43]} 20. Bg3 {[%clk 0:01:04]}  Qxe4 {[%clk 0:01:42]} 21. dxe5 {[%clk 0:00:58]}  fxe5 {[%clk 0:01:35]} 22. Qc3 {[%clk 0:00:44]}  Be6 {[%clk 0:01:26]} 23. Nf3 {[%clk 0:00:35]}  Rdg8 {[%clk 0:01:16]} 24. Nd2 {[%clk 0:00:25]}  Qg6 {[%clk 0:00:41]} 25. Rf3 {[%clk 0:00:22]}  Bg4 {[%clk 0:00:24]} 26. Rf2 {[%clk 0:00:18]}  Qh6 {[%clk 0:00:20]} 27. Rf7 {[%clk 0:00:07]}  Be6 {[%clk 0:00:12]} 28. Rf3 {[%clk 0:00:06]}  Qh1+ {[%clk 0:00:09]} 29. Kf2 {[%clk 0:00:06]}  Qxa1 {[%clk 0:00:10]} 30. Qa5 {[%clk 0:00:03]}  Qxa2 {[%clk 0:00:09]} 31. Qxa2 {[%clk 0:00:01]}  Bxa2 {[%clk 0:00:10]} 32. b3 {[%clk 0:00:02]}  a5 {[%clk 0:00:08]} 33. Rf5 {[%clk 0:00:01]}  Rf8 {[%clk 0:00:08]} 34. e4 {[%clk 0:00:01]}  Rxf5+ {[%clk 0:00:08]} 35. exf5 {[%clk 0:00:02]} 0-1


[Site "https://www.chess.com"]

[Event "Titled Tuesday Blitz June 27 Early 2023"]
[White "De Silva, L M S T"]
[Black "Movahed, Sina"]
[WhiteFideId "9953698"]
[BlackFideId "42520835"]
[WhiteElo "2718"]
[BlackElo "2947"]
[Result "1-0"]
[Round "4"]
[TimeControl "180+2"]
[Date "2023.06.27"]
[WhiteClock "0:00:06"]
[BlackClock "0:00:16"]
[Board "16"]

1. e4 {[%clk 0:03:00]}  c5 {[%clk 0:02:59]} 2. Nf3 {[%clk 0:03:01]}  d6 {[%clk 0:02:59]} 3. Bb5+ {[%clk 0:03:02]}  Bd7 {[%clk 0:02:59]} 4. Bxd7+ {[%clk 0:03:02]}  Qxd7 {[%clk 0:02:59]} 5. c4 {[%clk 0:03:02]}  Nf6 {[%clk 0:02:59]} 6. Nc3 {[%clk 0:03:03]}  Nc6 {[%clk 0:02:58]} 7. d4 {[%clk 0:02:59]}  cxd4 {[%clk 0:02:59]} 8. Nxd4 {[%clk 0:03:00]}  g6 {[%clk 0:03:00]} 9. f3 {[%clk 0:02:57]}  Bg7 {[%clk 0:02:55]} 10. Be3 {[%clk 0:02:57]}  O-O {[%clk 0:02:55]} 11. O-O {[%clk 0:02:58]}  Rfc8 {[%clk 0:02:55]} 12. Nxc6 {[%clk 0:02:55]}  Rxc6 {[%clk 0:02:50]} 13. Qd3 {[%clk 0:02:55]}  Rac8 {[%clk 0:02:46]} 14. b3 {[%clk 0:02:54]}  a6 {[%clk 0:02:46]} 15. a4 {[%clk 0:02:43]}  Qe8 {[%clk 0:02:45]} 16. Nd5 {[%clk 0:02:24]}  Nd7 {[%clk 0:02:38]} 17. Rab1 {[%clk 0:01:59]}  Nc5 {[%clk 0:02:36]} 18. Qd2 {[%clk 0:01:54]}  e6 {[%clk 0:02:35]} 19. Nb4 {[%clk 0:01:52]}  R6c7 {[%clk 0:02:34]} 20. Qxd6 {[%clk 0:01:49]}  Bf8 {[%clk 0:02:28]} 21. Qd2 {[%clk 0:01:47]}  Rd7 {[%clk 0:02:26]} 22. Qe1 {[%clk 0:01:43]}  Nd3 {[%clk 0:02:23]} 23. Nxd3 {[%clk 0:01:43]}  Rxd3 {[%clk 0:02:24]} 24. Kh1 {[%clk 0:01:39]}  b5 {[%clk 0:02:13]} 25. axb5 {[%clk 0:01:36]}  axb5 {[%clk 0:02:14]} 26. Qe2 {[%clk 0:01:33]}  bxc4 {[%clk 0:02:11]} 27. bxc4 {[%clk 0:01:33]}  Ra3 {[%clk 0:02:07]} 28. Rfc1 {[%clk 0:01:31]}  h5 {[%clk 0:02:03]} 29. c5 {[%clk 0:01:28]}  h4 {[%clk 0:02:03]} 30. h3 {[%clk 0:01:25]}  Qa4 {[%clk 0:01:54]} 31. Bf2 {[%clk 0:01:09]}  Bh6 {[%clk 0:01:40]} 32. Rc2 {[%clk 0:01:06]}  Ra1 {[%clk 0:01:39]} 33. Qd1 {[%clk 0:01:05]}  Rxb1 {[%clk 0:01:34]} 34. Qxb1 {[%clk 0:01:06]}  Bf4 {[%clk 0:01:26]} 35. Bxh4 {[%clk 0:01:04]}  Rb8 {[%clk 0:01:25]} 36. Qd1 {[%clk 0:00:52]}  Rb3 {[%clk 0:00:59]} 37. Bf6 {[%clk 0:00:39]}  Kh7 {[%clk 0:00:55]} 38. g3 {[%clk 0:00:24]}  Bxg3 {[%clk 0:00:51]} 39. Rb2 {[%clk 0:00:23]}  Ra3 {[%clk 0:00:42]} 40. Qxa4 {[%clk 0:00:23]}  Rxa4 {[%clk 0:00:43]} 41. Rc2 {[%clk 0:00:20]}  Bc7 {[%clk 0:00:35]} 42. Be7 {[%clk 0:00:21]}  Rd4 {[%clk 0:00:32]} 43. c6 {[%clk 0:00:15]}  Kh6 {[%clk 0:00:31]} 44. Kg2 {[%clk 0:00:15]}  g5 {[%clk 0:00:31]} 45. e5 {[%clk 0:00:13]}  Kg6 {[%clk 0:00:31]} 46. Bd6 {[%clk 0:00:13]}  Ba5 {[%clk 0:00:25]} 47. c7 {[%clk 0:00:13]}  Bxc7 {[%clk 0:00:26]} 48. Rxc7 {[%clk 0:00:14]}  Rd2+ {[%clk 0:00:26]} 49. Kg3 {[%clk 0:00:15]}  Rd1 {[%clk 0:00:26]} 50. Rc8 {[%clk 0:00:14]}  Rg1+ {[%clk 0:00:27]} 51. Kf2 {[%clk 0:00:15]}  Ra1 {[%clk 0:00:26]} 52. Rc4 {[%clk 0:00:14]}  Kf5 {[%clk 0:00:26]} 53. h4 {[%clk 0:00:14]}  gxh4 {[%clk 0:00:25]} 54. Rxh4 {[%clk 0:00:14]}  f6 {[%clk 0:00:24]} 55. exf6 {[%clk 0:00:11]}  Kxf6 {[%clk 0:00:24]} 56. Rf4+ {[%clk 0:00:10]}  Kg6 {[%clk 0:00:24]} 57. Be5 {[%clk 0:00:10]}  Ra6 {[%clk 0:00:25]} 58. Rf6+ {[%clk 0:00:11]}  Kg5 {[%clk 0:00:25]} 59. Kg3 {[%clk 0:00:10]}  Rb6 {[%clk 0:00:25]} 60. Rf8 {[%clk 0:00:06]}  Kg6 {[%clk 0:00:25]} 61. Kg4 {[%clk 0:00:06]}  Kh7 {[%clk 0:00:22]} 62. Rf6 {[%clk 0:00:06]}  Kg8 {[%clk 0:00:22]} 63. f4 {[%clk 0:00:05]}  Ra6 {[%clk 0:00:21]} 64. Kg5 {[%clk 0:00:05]}  Rb6 {[%clk 0:00:18]} 65. Rh6 {[%clk 0:00:06]}  Kf7 {[%clk 0:00:17]} 66. Rh7+ {[%clk 0:00:06]}  Kg8 {[%clk 0:00:16]} 67. Rg7+ {[%clk 0:00:06]}  Kf8 {[%clk 0:00:17]} 68. Kf6 {[%clk 0:00:06]}  Rb4 {[%clk 0:00:16]} 69. Rc7 {[%clk 0:00:06]}  Rb6 {[%clk 0:00:16]} 70. Rc8# {[%clk 0:00:06]} 1-0


[Site "https://www.chess.com"]

[Event "Titled Tuesday Blitz June 27 Early 2023"]
[White "Sadykov, Ramil"]
[Black "Tari, Aryan"]
[WhiteFideId "24113590"]
[BlackFideId "1510045"]
[WhiteElo "2655"]
[BlackElo "2917"]
[Result "0-1"]
[Round "4"]
[TimeControl "180+2"]
[Date "2023.06.27"]
[WhiteClock "0:00:01"]
[BlackClock "0:01:25"]
[Board "20"]

1. e4 {[%clk 0:03:00]}  e5 {[%clk 0:02:59]} 2. Nf3 {[%clk 0:02:59]}  Nc6 {[%clk 0:03:00]} 3. Bb5 {[%clk 0:02:57]}  Nge7 {[%clk 0:03:00]} 4. O-O {[%clk 0:02:54]}  Ng6 {[%clk 0:02:59]} 5. h3 {[%clk 0:02:48]}  Be7 {[%clk 0:02:48]} 6. d4 {[%clk 0:02:23]}  Nxd4 {[%clk 0:02:44]} 7. Nxd4 {[%clk 0:02:22]}  exd4 {[%clk 0:02:45]} 8. Qxd4 {[%clk 0:02:22]}  O-O {[%clk 0:02:42]} 9. Nc3 {[%clk 0:02:21]}  c6 {[%clk 0:02:42]} 10. Bc4 {[%clk 0:02:16]}  b5 {[%clk 0:02:42]} 11. Be2 {[%clk 0:02:09]}  Bf6 {[%clk 0:02:38]} 12. Qd3 {[%clk 0:01:48]}  d6 {[%clk 0:02:33]} 13. Rd1 {[%clk 0:01:41]}  Be5 {[%clk 0:02:33]} 14. Bf1 {[%clk 0:01:24]}  f5 {[%clk 0:02:30]} 15. Be3 {[%clk 0:01:01]}  fxe4 {[%clk 0:02:21]} 16. Nxe4 {[%clk 0:00:57]}  Bf5 {[%clk 0:02:17]} 17. g4 {[%clk 0:00:55]}  Be6 {[%clk 0:02:12]} 18. Nxd6 {[%clk 0:00:50]}  Qh4 {[%clk 0:02:07]} 19. Nf5 {[%clk 0:00:35]}  Bxf5 {[%clk 0:02:01]} 20. gxf5 {[%clk 0:00:36]}  Nf4 {[%clk 0:02:02]} 21. Bxf4 {[%clk 0:00:32]}  Qxf4 {[%clk 0:02:03]} 22. Bg2 {[%clk 0:00:19]}  Rxf5 {[%clk 0:02:01]} 23. Rd2 {[%clk 0:00:18]}  Raf8 {[%clk 0:01:59]} 24. Re1 {[%clk 0:00:12]}  Rg5 {[%clk 0:01:46]} 25. Kf1 {[%clk 0:00:07]}  Kh8 {[%clk 0:01:44]} 26. Re4 {[%clk 0:00:05]}  Qh2 {[%clk 0:01:44]} 27. Rg4 {[%clk 0:00:04]}  Rxg4 {[%clk 0:01:31]} 28. hxg4 {[%clk 0:00:05]}  Qf4 {[%clk 0:01:32]} 29. Re2 {[%clk 0:00:02]}  Bd4 {[%clk 0:01:27]} 30. Qe4 {[%clk 0:00:02]}  Qc1+ {[%clk 0:01:27]} 31. Re1 {[%clk 0:00:02]}  Rxf2+ {[%clk 0:01:25]} 32. Kg1 {[%clk 0:00:01]} 0-1


[Site "https://www.chess.com"]

[Event "Titled Tuesday Blitz June 27 Early 2023"]
[White "Demchenko, Anton"]
[Black "Zochowski, Kacper"]
[WhiteFideId "4160258"]
[BlackFideId "1125494"]
[WhiteElo "2912"]
[BlackElo "2655"]
[Result "1-0"]
[Round "4"]
[TimeControl "180+2"]
[Date "2023.06.27"]
[WhiteClock "0:00:09"]
[BlackClock "0:00:05"]
[Board "21"]

1. e4 {[%clk 0:02:57]}  d6 {[%clk 0:03:00]} 2. d4 {[%clk 0:02:53]}  Nf6 {[%clk 0:03:00]} 3. Nc3 {[%clk 0:02:54]}  e5 {[%clk 0:03:01]} 4. dxe5 {[%clk 0:02:55]}  dxe5 {[%clk 0:03:02]} 5. Qxd8+ {[%clk 0:02:55]}  Kxd8 {[%clk 0:03:03]} 6. Nf3 {[%clk 0:02:55]}  Bd6 {[%clk 0:03:03]} 7. Bc4 {[%clk 0:02:55]}  Be6 {[%clk 0:03:03]} 8. Bxe6 {[%clk 0:02:54]}  fxe6 {[%clk 0:03:04]} 9. Nd2 {[%clk 0:02:49]}  Ke7 {[%clk 0:03:04]} 10. Nd1 {[%clk 0:02:42]}  Nc6 {[%clk 0:03:05]} 11. f3 {[%clk 0:02:41]}  Nb4 {[%clk 0:02:53]} 12. Ne3 {[%clk 0:02:41]}  Bc5 {[%clk 0:02:54]} 13. a3 {[%clk 0:02:35]}  Nc6 {[%clk 0:02:06]} 14. Nb3 {[%clk 0:02:34]}  Bd6 {[%clk 0:02:04]} 15. c3 {[%clk 0:02:33]}  a5 {[%clk 0:02:03]} 16. a4 {[%clk 0:02:32]}  Nd7 {[%clk 0:02:02]} 17. Nc4 {[%clk 0:02:29]}  Nc5 {[%clk 0:01:59]} 18. Nxc5 {[%clk 0:02:26]}  Bxc5 {[%clk 0:02:00]} 19. Ke2 {[%clk 0:02:26]}  h6 {[%clk 0:01:56]} 20. h4 {[%clk 0:02:25]}  Bd6 {[%clk 0:01:41]} 21. Be3 {[%clk 0:02:20]}  Rhb8 {[%clk 0:01:41]} 22. g4 {[%clk 0:02:16]}  b5 {[%clk 0:01:38]} 23. axb5 {[%clk 0:02:17]}  Rxb5 {[%clk 0:01:39]} 24. Ra4 {[%clk 0:02:17]}  Bc5 {[%clk 0:01:34]} 25. Bd2 {[%clk 0:02:10]}  Bd6 {[%clk 0:01:17]} 26. Rha1 {[%clk 0:02:09]}  Rab8 {[%clk 0:01:12]} 27. Bc1 {[%clk 0:02:10]}  Ra8 {[%clk 0:01:03]} 28. b4 {[%clk 0:02:07]}  Kd7 {[%clk 0:00:45]} 29. h5 {[%clk 0:02:04]}  Kc8 {[%clk 0:00:44]} 30. Be3 {[%clk 0:01:47]}  Kb7 {[%clk 0:00:44]} 31. Na3 {[%clk 0:01:40]}  Rb6 {[%clk 0:00:35]} 32. Bxb6 {[%clk 0:01:37]}  cxb6 {[%clk 0:00:36]} 33. bxa5 {[%clk 0:01:31]}  Nxa5 {[%clk 0:00:35]} 34. Nc4 {[%clk 0:01:28]}  Bc7 {[%clk 0:00:36]} 35. Nd2 {[%clk 0:01:18]}  Rd8 {[%clk 0:00:34]} 36. Rb1 {[%clk 0:01:17]}  Kc6 {[%clk 0:00:33]} 37. Rab4 {[%clk 0:01:14]}  Nb7 {[%clk 0:00:29]} 38. Rc4+ {[%clk 0:01:10]}  Nc5 {[%clk 0:00:28]} 39. Nb3 {[%clk 0:01:10]}  Bd6 {[%clk 0:00:28]} 40. Nxc5 {[%clk 0:01:09]}  Bxc5 {[%clk 0:00:29]} 41. Ra4 {[%clk 0:01:09]}  Rf8 {[%clk 0:00:25]} 42. Ra7 {[%clk 0:01:05]}  Rg8 {[%clk 0:00:25]} 43. Rd1 {[%clk 0:01:00]}  Kb5 {[%clk 0:00:24]} 44. Rdd7 {[%clk 0:00:52]}  Kc4 {[%clk 0:00:25]} 45. Rxg7 {[%clk 0:00:51]}  Re8 {[%clk 0:00:25]} 46. Kd2 {[%clk 0:00:47]}  Rd8+ {[%clk 0:00:26]} 47. Rgd7 {[%clk 0:00:43]}  Rf8 {[%clk 0:00:26]} 48. Rf7 {[%clk 0:00:41]}  Rd8+ {[%clk 0:00:27]} 49. Rad7 {[%clk 0:00:41]}  Ra8 {[%clk 0:00:27]} 50. g5 {[%clk 0:00:38]}  Ra2+ {[%clk 0:00:27]} 51. Ke1 {[%clk 0:00:38]}  hxg5 {[%clk 0:00:24]} 52. h6 {[%clk 0:00:38]}  Rh2 {[%clk 0:00:25]} 53. h7 {[%clk 0:00:38]}  Rg2 {[%clk 0:00:05]} 54. Rd2 {[%clk 0:00:12]}  Rg1+ {[%clk 0:00:04]} 55. Ke2 {[%clk 0:00:13]}  Rh1 {[%clk 0:00:04]} 56. Rd8 {[%clk 0:00:13]}  Rh2+ {[%clk 0:00:04]} 57. Kf1 {[%clk 0:00:13]}  Kxc3 {[%clk 0:00:02]} 58. h8=Q {[%clk 0:00:13]}  Rxh8 {[%clk 0:00:03]} 59. Rxh8 {[%clk 0:00:12]}  Kd3 {[%clk 0:00:04]} 60. Kg2 {[%clk 0:00:11]}  Ke3 {[%clk 0:00:04]} 61. Rb8 {[%clk 0:00:11]}  Bd4 {[%clk 0:00:04]} 62. Rg7 {[%clk 0:00:10]}  Kf4 {[%clk 0:00:04]} 63. Rf8+ {[%clk 0:00:10]}  Ke3 {[%clk 0:00:05]} 64. Rxg5 {[%clk 0:00:10]}  b5 {[%clk 0:00:06]} 65. Rb8 {[%clk 0:00:10]}  Kf4 {[%clk 0:00:06]} 66. Rg4+ {[%clk 0:00:10]}  Ke3 {[%clk 0:00:06]} 67. Rg6 {[%clk 0:00:11]}  b4 {[%clk 0:00:06]} 68. Rxb4 {[%clk 0:00:11]}  Kf4 {[%clk 0:00:07]} 69. Rb3 {[%clk 0:00:09]}  Bc3 {[%clk 0:00:03]} 70. Rg4+ {[%clk 0:00:09]}  Ke3 {[%clk 0:00:04]} 71. Rxc3+ {[%clk 0:00:09]}  Kd4 {[%clk 0:00:05]} 72. Rc6 {[%clk 0:00:09]} 1-0


[Site "https://www.chess.com"]

[Event "Titled Tuesday Blitz June 27 Early 2023"]
[White "Makhnev, Denis"]
[Black "Girya, Olga"]
[WhiteFideId "13707647"]
[BlackFideId "4195752"]
[WhiteElo "2901"]
[BlackElo "2622"]
[Result "1-0"]
[Round "4"]
[TimeControl "180+2"]
[Date "2023.06.27"]
[WhiteClock "0:00:11"]
[BlackClock "0:00:00"]
[Board "22"]

1. d4 {[%clk 0:03:00]}  Nf6 {[%clk 0:02:58]} 2. c4 {[%clk 0:03:01]}  e6 {[%clk 0:02:59]} 3. Nf3 {[%clk 0:03:01]}  d5 {[%clk 0:02:59]} 4. g3 {[%clk 0:03:01]}  Be7 {[%clk 0:02:58]} 5. Bg2 {[%clk 0:03:01]}  O-O {[%clk 0:02:59]} 6. O-O {[%clk 0:03:02]}  dxc4 {[%clk 0:02:59]} 7. Qc2 {[%clk 0:03:02]}  a6 {[%clk 0:02:57]} 8. a4 {[%clk 0:03:03]}  Bd7 {[%clk 0:02:57]} 9. Qxc4 {[%clk 0:03:03]}  Bc6 {[%clk 0:02:57]} 10. Bg5 {[%clk 0:03:03]}  Nbd7 {[%clk 0:02:56]} 11. Nc3 {[%clk 0:03:02]}  h6 {[%clk 0:02:52]} 12. Bxf6 {[%clk 0:03:02]}  Nxf6 {[%clk 0:02:53]} 13. Rfd1 {[%clk 0:03:00]}  Qd6 {[%clk 0:02:47]} 14. Rac1 {[%clk 0:02:14]}  Rfd8 {[%clk 0:02:41]} 15. e3 {[%clk 0:02:07]}  Bf8 {[%clk 0:02:30]} 16. Qb3 {[%clk 0:01:50]}  Qb4 {[%clk 0:02:29]} 17. Qxb4 {[%clk 0:01:50]}  Bxb4 {[%clk 0:02:28]} 18. Ne5 {[%clk 0:01:51]}  Bxg2 {[%clk 0:02:22]} 19. Kxg2 {[%clk 0:01:52]}  Rac8 {[%clk 0:02:05]} 20. Nd3 {[%clk 0:01:33]}  Be7 {[%clk 0:01:41]} 21. b4 {[%clk 0:01:31]}  Nd5 {[%clk 0:01:41]} 22. Na2 {[%clk 0:00:59]}  c6 {[%clk 0:01:15]} 23. Kf3 {[%clk 0:00:55]}  Nb6 {[%clk 0:00:50]} 24. Nc5 {[%clk 0:00:29]}  Rb8 {[%clk 0:00:43]} 25. Rd3 {[%clk 0:00:23]}  Nd5 {[%clk 0:00:31]} 26. Rb3 {[%clk 0:00:22]}  Nc7 {[%clk 0:00:29]} 27. Ke2 {[%clk 0:00:21]}  Nd5 {[%clk 0:00:13]} 28. h4 {[%clk 0:00:22]}  Nc7 {[%clk 0:00:13]} 29. Nc3 {[%clk 0:00:16]}  h5 {[%clk 0:00:12]} 30. N3e4 {[%clk 0:00:16]}  g6 {[%clk 0:00:12]} 31. Nd2 {[%clk 0:00:14]}  Kg7 {[%clk 0:00:12]} 32. Nc4 {[%clk 0:00:14]}  Kg8 {[%clk 0:00:04]} 33. Na5 {[%clk 0:00:11]}  b6 {[%clk 0:00:03]} 34. Nxc6 {[%clk 0:00:11]}  bxc5 {[%clk 0:00:04]} 35. Nxe7+ {[%clk 0:00:11]}  Kf8 {[%clk 0:00:04]} 36. Nc6 {[%clk 0:00:12]}  cxb4 {[%clk 0:00:00]} 37. Nxb8 {[%clk 0:00:11]} 1-0


[Site "https://www.chess.com"]

[Event "Titled Tuesday Blitz June 27 Early 2023"]
[White "Vlassov, Nikolai"]
[Black "Nogerbek, Kazybek"]
[WhiteFideId "4103360"]
[BlackFideId "13710427"]
[WhiteElo "2602"]
[BlackElo "2901"]
[Result "0-1"]
[Round "4"]
[TimeControl "180+2"]
[Date "2023.06.27"]
[WhiteClock "0:00:00"]
[BlackClock "0:00:02"]
[Board "23"]

1. e4 {[%clk 0:03:00]}  g6 {[%clk 0:02:52]} 2. Nc3 {[%clk 0:03:00]}  Nf6 {[%clk 0:02:53]} 3. e5 {[%clk 0:03:00]}  Nh5 {[%clk 0:02:53]} 4. d4 {[%clk 0:02:58]}  d6 {[%clk 0:02:53]} 5. f4 {[%clk 0:02:50]}  d5 {[%clk 0:02:48]} 6. Bd3 {[%clk 0:02:43]}  c6 {[%clk 0:02:47]} 7. f5 {[%clk 0:02:26]}  Ng7 {[%clk 0:02:46]} 8. e6 {[%clk 0:02:18]}  gxf5 {[%clk 0:01:41]} 9. exf7+ {[%clk 0:02:17]}  Kxf7 {[%clk 0:01:42]} 10. Nf3 {[%clk 0:02:18]}  e6 {[%clk 0:01:39]} 11. O-O {[%clk 0:02:16]}  Be7 {[%clk 0:01:38]} 12. Ne5+ {[%clk 0:01:54]}  Kg8 {[%clk 0:01:30]} 13. Bh6 {[%clk 0:01:53]}  Bg5 {[%clk 0:01:23]} 14. Bxg5 {[%clk 0:01:42]}  Qxg5 {[%clk 0:01:24]} 15. Rf3 {[%clk 0:01:40]}  Nd7 {[%clk 0:01:23]} 16. Qe2 {[%clk 0:01:36]}  Qf6 {[%clk 0:01:17]} 17. Re1 {[%clk 0:01:33]}  Nxe5 {[%clk 0:01:16]} 18. dxe5 {[%clk 0:01:32]}  Qe7 {[%clk 0:01:13]} 19. Qf2 {[%clk 0:01:23]}  Bd7 {[%clk 0:01:13]} 20. Ne2 {[%clk 0:01:22]}  Be8 {[%clk 0:01:09]} 21. Nf4 {[%clk 0:01:19]}  Bg6 {[%clk 0:01:09]} 22. c3 {[%clk 0:01:10]}  Kf7 {[%clk 0:01:05]} 23. b4 {[%clk 0:01:05]}  Rhc8 {[%clk 0:01:02]} 24. Rh3 {[%clk 0:00:56]}  Kg8 {[%clk 0:00:58]} 25. Qg3 {[%clk 0:00:53]}  Qf7 {[%clk 0:00:58]} 26. Rh6 {[%clk 0:00:51]}  c5 {[%clk 0:00:35]} 27. h4 {[%clk 0:00:47]}  Kf8 {[%clk 0:00:15]} 28. h5 {[%clk 0:00:26]}  Nxh5 {[%clk 0:00:14]} 29. Nxh5 {[%clk 0:00:25]}  cxb4 {[%clk 0:00:14]} 30. cxb4 {[%clk 0:00:23]}  Rc3 {[%clk 0:00:15]} 31. Re3 {[%clk 0:00:17]}  d4 {[%clk 0:00:10]} 32. Rf3 {[%clk 0:00:16]}  Bxh5 {[%clk 0:00:04]} 33. Rf6 {[%clk 0:00:15]}  Bxf3 {[%clk 0:00:05]} 34. Rxf7+ {[%clk 0:00:13]}  Kxf7 {[%clk 0:00:05]} 35. Qxf3 {[%clk 0:00:14]}  Rac8 {[%clk 0:00:05]} 36. Qxb7+ {[%clk 0:00:13]}  R8c7 {[%clk 0:00:05]} 37. Qa6 {[%clk 0:00:12]}  Rd7 {[%clk 0:00:03]} 38. Kf2 {[%clk 0:00:11]}  Rd5 {[%clk 0:00:03]} 39. Qxa7+ {[%clk 0:00:11]}  Kg6 {[%clk 0:00:03]} 40. Qa6 {[%clk 0:00:11]}  Rxe5 {[%clk 0:00:04]} 41. Bf1 {[%clk 0:00:07]}  Rc2+ {[%clk 0:00:04]} 42. Kg1 {[%clk 0:00:06]}  Re1 {[%clk 0:00:04]} 43. Kh2 {[%clk 0:00:05]}  Rcc1 {[%clk 0:00:02]} 44. Bc4 {[%clk 0:00:05]}  Kf6 {[%clk 0:00:02]} 45. Bb3 {[%clk 0:00:00]}  Re3 {[%clk 0:00:02]} 0-1


[Site "https://www.chess.com"]

[Event "Titled Tuesday Blitz June 27 Early 2023"]
[White "Atakhan, Abtin"]
[Black "Jones, Gawain C B"]
[WhiteFideId "22502203"]
[BlackFideId "409561"]
[WhiteElo "2730"]
[BlackElo "2951"]
[Result "1-0"]
[Round "4"]
[TimeControl "180+2"]
[Date "2023.06.27"]
[WhiteClock "0:00:09"]
[BlackClock "0:00:00"]
[Board "26"]

1. Nf3 {[%clk 0:03:00]}  Nf6 {[%clk 0:02:58]} 2. g3 {[%clk 0:02:58]}  g6 {[%clk 0:02:54]} 3. Bg2 {[%clk 0:02:58]}  Bg7 {[%clk 0:02:55]} 4. c4 {[%clk 0:02:57]}  c5 {[%clk 0:02:53]} 5. Nc3 {[%clk 0:02:55]}  O-O {[%clk 0:02:53]} 6. O-O {[%clk 0:02:54]}  d6 {[%clk 0:02:53]} 7. d4 {[%clk 0:02:54]}  Nc6 {[%clk 0:02:53]} 8. dxc5 {[%clk 0:02:54]}  dxc5 {[%clk 0:02:53]} 9. Bf4 {[%clk 0:02:55]}  Nh5 {[%clk 0:02:53]} 10. Be3 {[%clk 0:02:55]}  b6 {[%clk 0:02:53]} 11. Qc1 {[%clk 0:02:52]}  Qe8 {[%clk 0:02:42]} 12. Bh6 {[%clk 0:02:50]}  Be6 {[%clk 0:02:34]} 13. Bxg7 {[%clk 0:02:40]}  Nxg7 {[%clk 0:02:32]} 14. Qf4 {[%clk 0:02:36]}  f6 {[%clk 0:02:26]} 15. Nd5 {[%clk 0:02:30]}  Rd8 {[%clk 0:02:23]} 16. Rfd1 {[%clk 0:02:20]}  Qf7 {[%clk 0:02:14]} 17. Qc7 {[%clk 0:02:13]}  Rc8 {[%clk 0:01:57]} 18. Qb7 {[%clk 0:02:13]}  Nf5 {[%clk 0:01:52]} 19. Nc7 {[%clk 0:02:07]}  Na5 {[%clk 0:01:32]} 20. Qxa7 {[%clk 0:01:50]}  Bxc4 {[%clk 0:01:10]} 21. Qxb6 {[%clk 0:01:48]}  e5 {[%clk 0:01:04]} 22. Qxa5 {[%clk 0:01:38]}  Rxc7 {[%clk 0:01:00]} 23. e3 {[%clk 0:01:27]}  h5 {[%clk 0:00:50]} 24. Nd2 {[%clk 0:01:20]}  Be6 {[%clk 0:00:49]} 25. Ne4 {[%clk 0:01:21]}  Ra7 {[%clk 0:00:35]} 26. Qxc5 {[%clk 0:01:16]}  Rxa2 {[%clk 0:00:34]} 27. Rxa2 {[%clk 0:01:14]}  Bxa2 {[%clk 0:00:35]} 28. Qb6 {[%clk 0:01:05]}  Qb3 {[%clk 0:00:30]} 29. Qxb3+ {[%clk 0:00:41]}  Bxb3 {[%clk 0:00:31]} 30. Rd7 {[%clk 0:00:41]}  Rf7 {[%clk 0:00:25]} 31. Rd8+ {[%clk 0:00:34]}  Kg7 {[%clk 0:00:25]} 32. Nc5 {[%clk 0:00:34]}  Bc4 {[%clk 0:00:18]} 33. b3 {[%clk 0:00:34]}  Rc7 {[%clk 0:00:17]} 34. bxc4 {[%clk 0:00:25]}  Rxc5 {[%clk 0:00:17]} 35. Rd7+ {[%clk 0:00:25]}  Kf8 {[%clk 0:00:17]} 36. Bd5 {[%clk 0:00:21]}  Ne7 {[%clk 0:00:17]} 37. e4 {[%clk 0:00:20]}  f5 {[%clk 0:00:13]} 38. Rd6 {[%clk 0:00:19]}  Nxd5 {[%clk 0:00:06]} 39. cxd5 {[%clk 0:00:14]}  Kf7 {[%clk 0:00:04]} 40. exf5 {[%clk 0:00:14]}  gxf5 {[%clk 0:00:05]} 41. h4 {[%clk 0:00:14]}  e4 {[%clk 0:00:05]} 42. Kg2 {[%clk 0:00:14]}  Rc2 {[%clk 0:00:04]} 43. Kf1 {[%clk 0:00:14]}  Rd2 {[%clk 0:00:03]} 44. Rd8 {[%clk 0:00:12]}  Ke7 {[%clk 0:00:03]} 45. Rh8 {[%clk 0:00:12]}  Rxd5 {[%clk 0:00:04]} 46. Rxh5 {[%clk 0:00:13]}  Ke6 {[%clk 0:00:04]} 47. Rg5 {[%clk 0:00:13]}  Rd2 {[%clk 0:00:04]} 48. Rg8 {[%clk 0:00:12]}  Kf7 {[%clk 0:00:04]} 49. Rg5 {[%clk 0:00:12]}  Kf6 {[%clk 0:00:04]} 50. Rg8 {[%clk 0:00:11]}  Kf7 {[%clk 0:00:05]} 51. Ra8 {[%clk 0:00:11]}  Kg6 {[%clk 0:00:05]} 52. Ra6+ {[%clk 0:00:10]}  Kh5 {[%clk 0:00:05]} 53. Rf6 {[%clk 0:00:08]}  Kg4 {[%clk 0:00:06]} 54. Kg2 {[%clk 0:00:08]}  e3 {[%clk 0:00:05]} 55. Rg6+ {[%clk 0:00:09]}  Kh5 {[%clk 0:00:05]} 56. Rg5+ {[%clk 0:00:10]}  Kh6 {[%clk 0:00:06]} 57. Rxf5 {[%clk 0:00:10]}  Kg6 {[%clk 0:00:05]} 58. Rf4 {[%clk 0:00:09]}  Kh5 {[%clk 0:00:04]} 59. Rf5+ {[%clk 0:00:09]}  Kg6 {[%clk 0:00:04]} 60. Rf3 {[%clk 0:00:09]}  exf2 {[%clk 0:00:02]} 61. Rxf2 {[%clk 0:00:09]}  Rd3 {[%clk 0:00:03]} 62. Rf3 {[%clk 0:00:09]}  Rd1 {[%clk 0:00:02]} 63. g4 {[%clk 0:00:09]}  Kh6 {[%clk 0:00:01]} 64. Rf6+ {[%clk 0:00:09]}  Kg7 {[%clk 0:00:02]} 65. Ra6 {[%clk 0:00:08]}  Rd3 {[%clk 0:00:02]} 66. Re6 {[%clk 0:00:06]}  Rc3 {[%clk 0:00:02]} 67. g5 {[%clk 0:00:05]}  Ra3 {[%clk 0:00:02]} 68. Rd6 {[%clk 0:00:05]}  Kh7 {[%clk 0:00:02]} 69. Rf6 {[%clk 0:00:06]}  Kg7 {[%clk 0:00:02]} 70. Rf3 {[%clk 0:00:06]}  Ra1 {[%clk 0:00:02]} 71. Kg3 {[%clk 0:00:07]}  Rg1+ {[%clk 0:00:02]} 72. Kf4 {[%clk 0:00:08]}  Rh1 {[%clk 0:00:03]} 73. Kg4 {[%clk 0:00:08]}  Rg1+ {[%clk 0:00:04]} 74. Kh5 {[%clk 0:00:08]}  Rg2 {[%clk 0:00:03]} 75. Rc3 {[%clk 0:00:08]}  Kf7 {[%clk 0:00:02]} 76. Rc7+ {[%clk 0:00:08]}  Ke6 {[%clk 0:00:01]} 77. Kg6 {[%clk 0:00:09]}  Rh2 {[%clk 0:00:02]} 78. h5 {[%clk 0:00:09]}  Kd6 {[%clk 0:00:00]} 79. Ra7 {[%clk 0:00:09]} 1-0


[Site "https://www.chess.com"]